[Event "Israeli Women Championship 2022"]
[Site "Yosiah Arad"]
[Date "2022.12.11"]
[Round "7.5"]
[White "Reprun, Nadejda"]
[Black "Brusilovski, Lena"]
[Result "1-0"]
[ECO "B41"]
[WhiteElo "1979"]
[BlackElo "1800"]
[Annotator "TA"]
[PlyCount "97"]
[EventDate "2022.12.05"]
[EventType "tourn"]
[EventCountry "ISR"]
[SourceTitle "playchess.com"]
[Source "ChessBase"]
[SourceQuality "1"]
[TimeControl "40/5400+30:1800+30"]

{[%evp 18,97,63,56,68,67,84,46,49,64,59,58,54,46,68,46,43,44,49,42,70,45,45,44,137,72,68,62,81,79,119,121,145,140,127,123,186,168,231,201,220,197,286,195,356,344,391,384,362,377,320,261,550,538,530,541,541,545,542,536,542,539,515,475,914,51,42,0,0,-199,0,-29990,-29991,-29991,-29992,-29994,-29995,-29996,-29997,-29997,-693,-693]} 1. e4 {[%emt 0:00:01]} c5 {[%emt 0:00:56]} 2. Nf3 {[%emt 0:00:05]} a6 {[%emt 0:00:47]} 3. c4 {[%emt 0:00:50]} Nc6 {[%emt 0:02:18]} 4. d4 {[%emt 0:01:06]} cxd4 {[%emt 0:01:50]} 5. Nxd4 {[%emt 0:00:05]} e6 {[%emt 0:03:12]} 6. Nc3 {[%emt 0:05:41]} Qc7 {[%emt 0:05:35]} 7. Be2 {[%emt 0:01:16]} Nf6 {[%emt 0:01:07]} 8. O-O {[%emt 0:03:38]} Nxd4 {[%emt 0:01:57]} 9. Qxd4 {[%emt 0:00:08]} Bc5 {[%emt 0:00:08] 9...Bc5 scores better than 9...Bd6.} 10. Qd3 {[%emt 0:01:39]} O-O {[%emt 0:01:02][%cal Ob7b5] B41: Sicilian: Kan Variation: 5 c4.} 11. Be3 {[%emt 0:02:07] Inhibits b5.} Rb8 {[%emt 0:01:45]} 12. a3 {[%emt 0:07:52]} b6 {[%emt 0:01:46] White is slightly better.} 13. b4 {[%emt 0:05:28]} Bxe3 {[%emt 0:01:17]} 14. Qxe3 {[%emt 0:00:07]} d6 {[%emt 0:01:36]} 15. Rac1 {[%emt 0:03:54]} Bb7 {[%emt 0:02:28]} 16. f3 {[%emt 0:09:28]} Rfd8 {[%emt 0:03:43]} 17. Rfd1 {[%emt 0:00:38] [#]} Ba8 $146 {[%emt 0:02:12]} ({Predecessor:} 17... h6 18. Bf1 Ba8 19. Ne2 Nd7 20. Nd4 Nf8 21. Rc3 Rbc8 22. Rdc1 Qa7 23. Ne2 Rc7 {½-½ (48) Jeitz,C (2221)-Srebrnic,M (2333) Pardubice 2009}) 18. Bf1 {[%emt 0:15:51]} Qb7 {[%emt 0:06:01]} 19. Rc2 {[%emt 0:01:44]} (19. Rd4 $5 {[%cal Rc1d1]}) 19... Ne8 {[%emt 0:02:31][%cal Bf6e8,Be8c7,Bc7e6,Be6d4][%mdl 32]} 20. Rcd2 {[%emt 0:00:33]} Qe7 {[%emt 0:01:05] [#]} (20... Qc7 $14) 21. Rd4 {[%emt 0:02:35] White is more active.} ({White should try} 21. e5 $1) 21... e5 $16 {[%emt 0:01:41]} 22. R4d3 {[%emt 0:00:38]} Nc7 {[%emt 0:01:19]} 23. Qd2 {[%emt 0:01:38][%cal Rd3d6]} Ne6 {[%emt 0:00:22]} 24. Rxd6 {[%emt 0:01:13]} Nd4 {[%emt 0:00:27]} 25. Rxd8+ {[%emt 0:00:21]} Rxd8 {[%emt 0:00:02]} 26. Qe3 {[%emt 0:06:54]} Rd6 {[%emt 0:01:39]} (26... Qe6 $16 {might work better.} 27. Nd5 f6) 27. Bd3 {[%emt 0:04:48]} Rg6 {[%emt 0:02:30]} (27... Kf8 {was necessary.} 28. Nd5 Bxd5) 28. f4 $18 {[%emt 0:02:14][%cal Bf3f4,Bf4f5][%mdl 32]} f6 {[%emt 0:00:35]} 29. Nd5 {[%emt 0:01:57]} Qd6 {[%emt 0:01:54]} (29... Qd8 $142 30. c5 bxc5 31. bxc5 Bc6) 30. Rc1 {[%emt 0:04:05]} Bb7 $2 {[%emt 0:02:33]} (30... Qd8 {is a better defense.} 31. c5 b5) 31. f5 {[%emt 0:04:34]} Rg5 {[%emt 0:01:50]} 32. c5 {[%emt 0:00:08] Prevents h5.} bxc5 {[%emt 0:00:41]} 33. bxc5 {[%emt 0:01:59]} Qd7 {[%emt 0:00:45]} 34. Nb4 {[%emt 0:01:05] c6 is the strong threat.} a5 $2 {[%emt 0:01:19]} (34... h5 35. Kf2 (35. Nxa6 Nxf5 36. exf5 Qc6 $14) (35. Bxa6 Bxa6 36. Nxa6 Qb5 $15) 35... a5) 35. c6 {[%emt 0:00:32]} Bxc6 {[%emt 0:00:45]} 36. Nxc6 {[%emt 0:00:58]} Nxc6 {[%emt 0:00:48]} 37. Bc4+ {[%emt 0:01:07]} Kf8 {[%emt 0:01:13]} 38. Qc5+ {[%emt 0:00:49]} Ne7 {[%emt 0:00:06][%cal Og5g2]} 39. Bd5 {[%emt 0:02:39] Black must now prevent Rb1.} g6 {[%emt 0:00:48]} 40. Rb1 {[%emt 0:01:56]} Qa4 {[%emt 0:04:15]} (40... Qc8 $142 41. Qxc8+ (41. Qxa5 Qc2 $17) (41. Qd6 Rxg2+ 42. Kxg2 Qc2+ 43. Kh3 Qd3+ 44. Kg2 Qc2+ 45. Kh3 Qd3+ 46. Kg2 Qc2+ $11) 41... Nxc8) 41. Rb8+ $2 {[%emt 0:34:30]} ({Only move:} 41. Kh1 $18 {Intending Qd6 and mate.} Qd7 42. Rb8+ Kg7 43. Rb7 (43. Qxa5 Nxd5 44. Qxd5 Qxd5 $11) 43... Qxb7 44. Bxb7) 41... Kg7 $14 {[%emt 0:30:16][%cal Bf8g7,Bg7h6,Bh6h5][%mdl 32] And now ...Qd1+ would win.} 42. Qxe7+ {[%emt 0:00:00]} (42. Bc4 $5 {[%cal Rc5e7]} Kh6 43. Rb3 $14 (43. Qxe7 $2 Qxc4 44. g3 Qd4+ 45. Kf1 Qxe4 $19)) 42... Kh6 {[%emt 0:00:00]} 43. Qf8+ {[%emt 0:00:00]} (43. Qxf6 Qd1+ 44. Kf2 Qd2+ 45. Kf1 Qxg2+ 46. Ke1 Qg1+ 47. Kd2 Rg2+ 48. Kc3 Qd4+ 49. Kb3 Rb2#) 43... Kh5 {[%emt 0:00:00] ( -> ...Qd1+)} 44. Bb3 {[%emt 0:00:00][%mdl 8192] [#] Prevents Qd1+.} (44. Qxf6 Qd1+ 45. Kf2 Qd2+ 46. Kf1 Rxg2) (44. g3 $11 Qd1+ 45. Kg2 (45. Kf2 Qd2+ 46. Kg1 Qd1+ 47. Kg2 Qe2+ 48. Kg1 Qd1+ $11) 45... Qe2+ 46. Kg1 Qd1+ 47. Kg2 (47. Kf2 Qd2+ 48. Kg1 Qd1+ $11) 47... Qe2+ 48. Kg1 Qd1+) 44... Qd4+ {[%emt 0:00:00]} 45. Kf1 {[%emt 0:00:00]} Qd3+ {[%emt 0:00:00]} 46. Ke1 {[%emt 0:00:40]} Qxe4+ {[%emt 0:00:00]} 47. Kd2 {[%emt 0:00:58]} Rxg2+ {[%emt 0:00:00]} ({Stronger than} 47... Rxf5 48. g4+ Kxg4 49. Be6 Qg2+ 50. Kd3 Qf3+ 51. Kd2 (51. Kc2 $2 Qc6+ 52. Kb2 Qxe6 $19) 51... Qg2+ 52. Kd3 Qf3+ 53. Kd2 (53. Kc2 $2 Qc6+ 54. Kb2 Qxe6 $19) 53... Qg2+ $11) 48. Kc1 {[%emt 0:00:08]} Qe1+ {[%emt 0:00:00]} (48... Qe3+ $142 49. Kb1 Qg1+ 50. Bd1+ Qxd1#) 49. Bd1+ {[%emt 0:00:05][%mdl 32768] Weighted Error Value: White=0.41/Black=0.51. Loss on time!?} 1-0

[Event "Israeli Women Championship 2022"]
[Site "Yosiah Arad"]
[Date "2022.12.12"]
[Round "8.1"]
[White "Kluchik, Julia"]
[Black "Efroimski, Marsel"]
[Result "1-0"]
[ECO "D37"]
[WhiteElo "1887"]
[BlackElo "2470"]
[Annotator "TA"]
[PlyCount "111"]
[EventDate "2022.12.05"]
[EventType "tourn"]
[EventCountry "ISR"]
[SourceTitle "playchess.com"]
[Source "ChessBase"]
[SourceQuality "1"]
[TimeControl "40/5400+30:1800+30"]

{[%evp 9,111,25,16,19,27,32,37,24,31,31,37,25,26,28,36,34,38,27,31,39,45,42,37,42,56,39,49,8,28,28,85,54,89,8,12,12,12,12,12,12,12,8,12,13,12,16,11,18,17,0,18,10,67,50,65,9,9,0,0,0,0,-8,-8,-8,-8,-8,274,0,-8,-8,-8,-8,8,8,8,8,8,8,37,59,136,125,723,717,567,636,1616,1560,29969,29963,29978,29980,29980,29981,29980,29981,29981,29982,29985,29986,29986,29987,29987,29988]} 1. d4 {[%emt 0:00:04]} d5 {[%emt 0:00:33]} 2. Nf3 {[%emt 0:00:12]} e6 {[%emt 0:00:03]} 3. c4 {[%emt 0:00:07]} a6 {[%emt 0:00:06]} 4. cxd5 {[%emt 0:06:21]} exd5 {[%emt 0:00:08]} 5. Nc3 {[%emt 0:00:01]} Nf6 {[%emt 0:01:02]} 6. Bg5 {[%emt 0:00:25] D37: Queen's Gambit Declined: 5 Bf4.} Be6 {[%emt 0:00:04]} 7. e3 {[%emt 0:00:10]} Nbd7 {[%emt 0:00:20]} 8. Bd3 {[%emt 0:00:50] White is slightly better.} h6 {[%emt 0:00:17]} 9. Bf4 {[%emt 0:01:45]} Be7 {[%emt 0:00:15]} 10. O-O {[%emt 0:00:36]} O-O {[%emt 0:00:04]} 11. Rc1 {[%emt 0:00:19]} c5 {[%emt 0:00:23]} 12. dxc5 {[%emt 0:06:44]} Nxc5 {[%emt 0:00:04]} 13. Nd4 {[%emt 0:00:09] [#]} Nxd3 $146 {[%emt 0:01:23]} ({Predecessor:} 13... Qd7 14. Bb1 Rac8 15. h3 b5 16. a3 Nce4 17. Nxe6 Qxe6 18. Ne2 Rxc1 19. Qxc1 Rc8 {1-0 (58) Goryachkina,A (2593)-Musalov,R (2359) Sochi 2021}) 14. Qxd3 {[%emt 0:00:14]} Qd7 {[%emt 0:00:05]} 15. Rfd1 {[%emt 0:04:18][%cal Bf1d1,Bd1d2,Bd2c2][%mdl 32]} Rfd8 {[%emt 0:00:28]} 16. h3 {[%emt 0:13:47]} b5 {[%emt 0:00:13]} 17. a3 {[%emt 0:01:10]} Rac8 {[%emt 0:00:07]} 18. Rd2 {[%emt 0:18:25]} Rc4 {[%emt 0:04:32][%cal Of6e4]} 19. Rdc2 {[%emt 0:15:14]} Bf8 {[%emt 0:03:42]} (19... Ne4 $11) 20. Be5 {[%emt 0:29:39]} Ne8 {[%emt 0:00:45]} 21. Nb1 {[%emt 0:00:00] White has more active pieces. Pair of Knights!} (21. b3 $16 Rcc8 22. a4) 21... Nd6 {[%emt 0:04:22]} 22. Bxd6 {[%emt 0:00:00]} Bxd6 {[%emt 0:00:34]} (22... Rxc2 {simplifies} 23. Rxc2 Bxd6 24. f4 Qb7) 23. Nd2 {[%emt 0:00:00]} Rxc2 {[%emt 0:03:27]} 24. Rxc2 {[%emt 0:00:00]} Rc8 {[%emt 0:01:59] Prevents Rc6.} 25. b4 {[%emt 0:00:00]} Rxc2 {[%emt 0:02:06]} 26. Qxc2 {[%emt 0:00:00]} Qc8 {[%emt 0:00:09]} 27. Qxc8+ {[%emt 0:00:00]} Bxc8 $11 {[%emt 0:00:01][%mdl 4096] Endgame KBB-KNN} 28. N2b3 {[%emt 0:00:00]} Kf8 {[%emt 0:01:02]} 29. Kf1 {[%emt 0:00:00]} g5 {[%emt 0:00:27]} 30. g4 {[%emt 0:00:00]} Kg7 {[%emt 0:00:48]} ({Black should play} 30... h5 $11) 31. Ke2 {[%emt 0:00:00]} Kg6 {[%emt 0:00:46]} 32. Kd3 {[%emt 0:00:00]} (32. f3 $14) 32... f5 {[%emt 0:01:24]} 33. Nxf5 {[%emt 0:01:30]} Bxf5+ {[%emt 0:00:02]} 34. gxf5+ {[%emt 0:00:05]} Kxf5 {[%emt 0:00:02] KB-KN} 35. Kd4 {[%emt 0:00:18]} g4 $1 {[%emt 0:03:27]} 36. hxg4+ {[%emt 0:02:42]} (36. Kxd5 $2 gxh3 $1 37. Nd4+ Kg4 38. f3+ Kg3 39. Kxd6 h2 $19) 36... Kxg4 {[%emt 0:00:02]} 37. Kxd5 {[%emt 0:00:10]} Bf8 {[%emt 0:07:04][%mdl 8192]} (37... Be7 $11 {and Black is okay.} 38. Ke6 Bd8) 38. Ke4 $2 {[%emt 0:02:47]} (38. Nd4 $1 $18) 38... h5 {[%emt 0:00:21] With the idea ...h4.} 39. Nd4 $1 {[%emt 0:00:45]} h4 {[%emt 0:00:43] White must now prevent ...h3.} 40. f3+ {[%emt 0:00:37]} Kg5 {[%emt 0:05:19] Strongly threatening ...h3.} (40... Kh5 $5 {[%cal Rh4h3]} 41. Ne6 h3 $1 42. Nf4+ (42. Nxf8 $2 h2 $19) 42... Kh4 43. Nxh3 (43. Ng6+ $2 Kg3 $19) 43... Kxh3 $11) 41. Ne6+ {[%emt 0:30:45]} Kf6 $1 {[%emt 0:30:10]} 42. Nf4 {[%emt 0:00:00] Hoping for Nd3.} (42. Nxf8 $2 {is the wrong capture.} h3 43. Kd5 h2 $19) 42... Bd6 {[%emt 0:00:00]} 43. Nd3 {[%emt 0:00:00]} h3 {[%emt 0:00:00] And now ...Bg3 would win.} 44. f4 {[%emt 0:00:00]} Ke6 {[%emt 0:00:00]} (44... h2 $14 45. Nf2 Kg6) 45. Kf3 $16 {[%emt 0:00:00] e4 is the strong threat.} Kd5 {[%emt 0:00:00][%mdl 8192] [#]} (45... h2 $16 46. Kg2 Kd5) 46. e4+ $1 $18 {[%emt 0:00:00][%cal Be3e4,Be4e5,Be5e6][%mdl 32]} Kc4 {[%emt 0:00:00]} 47. e5 {[%emt 0:00:00]} Bf8 {[%emt 0:00:00] [#]} 48. f5 $1 {[%emt 0:00:00]} Kxd3 {[%emt 0:00:00] KB-KP} (48... Bg7 49. f6) 49. f6 {[%emt 0:00:00] White mates.} a5 {[%emt 0:00:00]} 50. e6 {[%emt 0:00:00]} axb4 {[%emt 0:00:00]} 51. axb4 {[%emt 0:00:00]} Bxb4 {[%emt 0:00:00] KB-KPP} 52. e7 {[%emt 0:00:00]} h2 {[%emt 0:00:00]} 53. Kg2 {[%emt 0:00:00]} (53. e8=B {leads to mate.} h1=Q+ 54. Kg3 Be1+ 55. Kg4 Qh4+ 56. Kf5 Qe4+ 57. Kg5 Bd2+ 58. Kh5 Qf5+ 59. Kh4 Be1#) 53... Bxe7 {[%emt 0:00:00]} 54. fxe7 {[%emt 0:00:00]} b4 {[%emt 0:00:00]} 55. e8=Q {[%emt 0:00:00]} ({And not} 55. e8=B Ke4 $11) 55... b3 {[%emt 0:00:00]} 56. Qg6+ {[%emt 0:00:00] Weighted Error Value: White=0.19 (very precise) /Black=0.33} 1-0

[Event "Israeli Women Championship 2022"]
[Site "Yosiah Arad"]
[Date "2022.12.12"]
[Round "8.2"]
[White "Shvayger, Yuliya"]
[Black "Reprun, Nadejda"]
[Result "1/2-1/2"]
[ECO "B11"]
[WhiteElo "2350"]
[BlackElo "1979"]
[Annotator "TA"]
[PlyCount "81"]
[EventDate "2022.12.05"]
[EventType "tourn"]
[EventCountry "ISR"]
[SourceTitle "playchess.com"]
[Source "ChessBase"]
[SourceQuality "1"]
[TimeControl "40/5400+30:1800+30"]

{[%evp 12,81,8,16,12,0,24,14,14,-31,-32,-19,-31,-45,0,12,6,14,18,-43,39,32,12,6,35,32,24,-2,0,-4,0,0,0,0,0,-17,0,0,9,8,12,21,45,47,47,47,46,43,43,43,43,43,41,34,51,19,35,20,20,20,24,25,25,6,16,6,12,0,0,0,18,18]} 1. e4 {[%emt 0:00:03]} c6 {[%emt 0:00:03]} 2. Nf3 {[%emt 0:00:08]} d5 {[%emt 0:00:04]} 3. Nc3 {[%emt 0:00:03]} Bg4 {[%emt 0:00:04]} 4. h3 {[%emt 0:00:28]} Bxf3 {[%emt 0:00:05]} 5. Qxf3 {[%emt 0:00:04]} e6 {[%emt 0:00:03]} 6. d3 {[%emt 0:01:44]} Nd7 {[%emt 0:00:34]} 7. Bd2 {[%emt 0:00:35] 7.Be2 injects fresh life into this line.} Qb6 {[%emt 0:00:16] B11: Caro-Kann: Two Knights Variation.} 8. O-O-O {[%emt 0:06:55][%cal Od3d4]} d4 {[%emt 0:02:39] 8...Bd6 is vanishing.} (8... Bd6 $5) 9. Ne2 {[%emt 0:00:03]} a5 {[%emt 0:01:26]} 10. e5 {[%emt 0:12:43]} Nxe5 {[%emt 0:10:40]} 11. Qe4 {[%emt 0:00:12]} Ng6 {[%emt 0:05:41] White must now prevent ...0-0-0.} 12. Qxd4 {[%emt 0:04:32] [#]} (12. Nxd4 $2 Nf6 13. Qe3 Bc5 $17) 12... Qxd4 $146 {[%emt 0:00:16]} (12... Bc5 $1 $15 13. Qc3 (13. Qxg7 $2 {perishes.} e5 $19) 13... Nf6) ({Predecessor:} 12... Bc5 13. Qc3 Nf6 14. d4 Bb4 15. Qd3 Bxd2+ 16. Qxd2 a4 17. a3 Ra5 18. Nc3 O-O {½-½ (39) Baltic,F (2238)-Gustafsson,J (2645) Germany 2019}) 13. Nxd4 $11 {[%emt 0:00:02]} Bc5 {[%emt 0:01:38]} 14. Nb3 {[%emt 0:04:34][%csl LRa5,LRc5]} Bb6 {[%emt 0:18:34]} 15. a4 {[%emt 0:00:07]} ({White should play} 15. d4 $11) 15... Nf6 {[%emt 0:00:54]} (15... Bxf2 $15 16. Nxa5 N8e7) 16. d4 $14 {[%emt 0:00:38]} O-O {[%emt 0:09:11]} 17. c4 {[%emt 0:05:18]} Ne4 {[%emt 0:02:39]} 18. Be3 {[%emt 0:02:58]} e5 {[%emt 0:03:08]} 19. Bd3 {[%emt 0:00:41]} (19. c5 $5 {[%cal Rc5b6]} Bc7 20. g3 $11) 19... exd4 {[%emt 0:01:12]} 20. Nxd4 {[%emt 0:00:47]} Nc5 {[%emt 0:01:08]} 21. Bc2 {[%emt 0:04:40]} Ne5 {[%emt 0:02:37]} 22. b3 $1 {[%emt 0:00:32]} Na6 {[%emt 0:04:41]} 23. Rhe1 {[%emt 0:07:07]} Rad8 {[%emt 0:02:07]} 24. f4 {[%emt 0:03:33][%cal Bf2f4,Bf4f5][%mdl 32]} Ng6 {[%emt 0:05:18]} 25. f5 {[%emt 0:02:00]} Ne5 {[%emt 0:04:10]} 26. Bg1 {[%emt 0:03:05]} Rfe8 {[%emt 0:06:41] [#]} 27. Nxc6 $1 {[%emt 0:03:55]} Rxd1+ {[%emt 0:03:58]} 28. Kxd1 {[%emt 0:00:37]} Bxg1 {[%emt 0:01:10]} 29. Rxe5 {[%emt 0:00:25]} Rxe5 {[%emt 0:00:31]} 30. Nxe5 {[%emt 0:00:02][%mdl 4096] Endgame KBN-KBN} Bd4 {[%emt 0:04:32]} 31. Nf3 {[%emt 0:01:59]} Bf6 {[%emt 0:00:10]} 32. g4 {[%emt 0:02:42]} h6 {[%emt 0:00:09]} 33. Be4 {[%emt 0:10:03]} Nc5 {[%emt 0:00:39]} 34. Bd5 {[%emt 0:01:41]} b6 {[%emt 0:00:35]} 35. Kc2 {[%emt 0:00:09]} Kf8 {[%emt 0:00:36]} 36. Ne1 {[%emt 0:02:32]} Ke7 {[%emt 0:01:19]} 37. Ng2 {[%emt 0:00:30]} Be5 {[%emt 0:04:45] The position is equal.} 38. Ba8 {[%emt 0:02:26]} Na6 {[%emt 0:02:38]} 39. Ne3 {[%emt 0:01:43]} Nb4+ {[%emt 0:00:05]} 40. Kd1 {[%emt 0:01:00]} Bd4 {[%emt 0:00:16]} 41. Nd5+ {[%emt 0:32:42] Weighted Error Value: White=0.10 (very precise) /Black=0.11 (very precise)} 1/2-1/2

[Event "Israeli Women Championship 2022"]
[Site "Yosiah Arad"]
[Date "2022.12.12"]
[Round "8.3"]
[White "Orian, Noga"]
[Black "Ovechkin, Lilia"]
[Result "0-1"]
[ECO "A40"]
[WhiteElo "1947"]
[BlackElo "1680"]
[Annotator "TA"]
[PlyCount "92"]
[EventDate "2022.12.05"]
[EventType "tourn"]
[EventCountry "ISR"]
[SourceTitle "playchess.com"]
[Source "ChessBase"]
[SourceQuality "1"]
[TimeControl "40/5400+30:1800+30"]

{[%evp 9,92,62,69,71,79,72,70,56,58,50,87,80,81,76,89,77,88,94,71,52,76,73,97,43,98,99,163,59,42,51,54,54,108,47,79,70,151,187,393,25,18,-375,-375,-506,-502,-456,-58,-68,-70,-43,-62,-69,-95,-80,-18,-128,-130,-160,-121,-97,-93,-319,-322,-289,-299,-312,-312,-299,-297,-281,-170,-266,-107,-609,-587,-1042,-1002,-987,-946,-935,-934,-896,-880,-12837,-12835]} 1. d4 {[%emt 0:04:42]} b6 {[%emt 0:03:26]} 2. c4 {[%emt 0:01:07]} Bb7 {[%emt 0:01:10]} 3. Nc3 {[%emt 0:00:11]} e6 {[%emt 0:00:27]} 4. e4 {[%emt 0:01:02]} d6 {[%emt 0:04:46]} 5. Nf3 {[%emt 0:01:12]} g6 {[%emt 0:04:26]} 6. Bg5 {[%emt 0:02:32] A40: Unusual replies to 1 d4.} Be7 {[%emt 0:06:03] [#]} 7. Bf4 $146 {[%emt 0:01:14]} ({Predecessor:} 7. h4 Bxg5 8. hxg5 Nd7 9. Qd2 Qe7 10. O-O-O O-O-O 11. Kb1 Qf8 12. d5 exd5 13. cxd5 {1-0 (35) Szurkos,A (1780)-Baranyi,Z (1715) Budapest 2015}) 7... Nf6 {[%emt 0:05:20]} 8. Bd3 {[%emt 0:00:25] White is slightly better.} O-O {[%emt 0:02:23][%cal Oe6e5]} 9. Qd2 {[%emt 0:02:01]} d5 {[%emt 0:16:16]} 10. cxd5 {[%emt 0:03:36]} exd5 {[%emt 0:02:35]} 11. e5 {[%emt 0:00:40]} Ne4 {[%emt 0:02:59]} 12. Qe3 {[%emt 0:00:08][%cal Rc3e4]} Nxc3 {[%emt 0:05:12]} 13. bxc3 {[%emt 0:00:03]} Ba6 {[%emt 0:00:34]} 14. h4 {[%emt 0:01:07][%cal Bh2h4,Bh4h5][%mdl 32]} Bxd3 {[%emt 0:03:36]} 15. Qxd3 {[%emt 0:00:07]} Re8 {[%emt 0:11:13]} 16. Kd2 {[%emt 0:10:05]} (16. h5 $16) 16... Nd7 {[%emt 0:03:54]} (16... c5 $1 $14) 17. Rh3 $16 {[%emt 0:05:51] Threatens to win with h5.} Nf8 {[%emt 0:02:25]} (17... Kh8 $16) 18. Bh6 {[%emt 0:03:05]} (18. h5 $18) 18... c5 $14 {[%emt 0:02:29]} 19. h5 {[%emt 0:00:59] hxg6 is the strong threat.} cxd4 {[%emt 0:00:54]} 20. cxd4 {[%emt 0:00:10]} Bb4+ {[%emt 0:05:29]} (20... Rc8 $14) 21. Ke2 $16 {[%emt 0:00:24] Black must now prevent Rah1.} Rc8 $1 {[%emt 0:00:55][%cal Ba8c8,Bc8c3,Bc3a3,Ba3a2][%mdl 32]} 22. Rah1 {[%emt 0:06:16]} Qd7 {[%emt 0:03:59]} ({Black should play} 22... Rc7 $14) 23. hxg6 {[%emt 0:05:33]} hxg6 {[%emt 0:00:25]} (23... Nxg6 24. Kf1 Qa4) 24. a3 $2 {[%emt 0:10:30]} (24. Bg5 $18 {White wants to mate with Rh8+.} Be7 25. Rh8+ Kg7 26. Qa3 Qb5+ 27. Ke3 (27. Qd3 Qxd3+ 28. Kxd3 Bxg5 $11) 27... Bxg5+ 28. Nxg5) 24... Rc3 $11 {[%emt 0:00:42] [#]} 25. Bxf8 $4 {[%emt 0:05:20][%mdl 8192]} (25. Bg5 $1 $11 {and White has nothing to worry.} Qxh3 26. Rxh3 Rxd3 27. Kxd3) 25... Kxf8 $19 {[%emt 0:00:26][%cal Bg8f8,Bf8e7,Be7d7][%mdl 32]} 26. Rh8+ {[%emt 0:01:09]} Ke7 {[%emt 0:00:08]} 27. Rxe8+ {[%emt 0:01:02]} Qxe8 $2 {[%emt 0:00:09]} (27... Kxe8 $19 28. axb4 (28. Rh8+ $2 Ke7 $19) 28... Rxd3 29. Kxd3 Qb5+ 30. Ke3 Qxb4 31. Rh8+ Ke7) 28. Qa6 $15 {[%emt 0:00:52]} Rxa3 {[%emt 0:01:01]} 29. Qb7+ {[%emt 0:00:05]} Qd7 {[%emt 0:00:21] Really sharp!} 30. Qxd7+ {[%emt 0:00:21]} Kxd7 {[%emt 0:00:02][%mdl 4096] Endgame KRB-KRN} 31. Rh7 {[%emt 0:00:19] [#]} Ke8 {[%emt 0:02:39]} (31... Ra2+ $1 $17 32. Ke3 Ke7) 32. Ng5 {[%emt 0:02:47]} (32. Rh8+ $1 $11 {was the only way to keep the balance.} Kd7 33. Rb8) 32... Ra2+ $17 {[%emt 0:00:05]} 33. Kf3 {[%emt 0:00:04]} Be1 {[%emt 0:00:11]} 34. Rh8+ {[%emt 0:01:32]} Ke7 {[%emt 0:00:08]} 35. Nh7 $2 {[%emt 0:00:35]} (35. Rb8 $17 {keeps fighting.}) 35... Rxf2+ $19 {[%emt 0:02:19]} 36. Ke3 {[%emt 0:00:16]} Rxg2 {[%emt 0:01:07]} 37. Nf6 {[%emt 0:00:58][%csl Gf6][%cal Rh8e8]} Ke6 {[%emt 0:00:03] aiming for ...Rg3+.} 38. Re8+ {[%emt 0:01:12]} Kf5 {[%emt 0:00:04] Hoping for ...Rg3+.} 39. Nxd5 {[%emt 0:00:35] [#]} Rg3+ $1 {[%emt 0:03:13]} 40. Ke2 {[%emt 0:00:01]} Bc3 {[%emt 0:01:02]} (40... Ba5 $19 {and Black stays clearly on top. Strongly threatening ...Ke4.} 41. Rd8 b5) 41. Nxc3 $2 {[%emt 0:30:51][%mdl 8192]} (41. Kf2 $17 Rh3 42. Nxc3 Rxc3 43. Re7) 41... Rxc3 $17 {[%emt 0:30:05] KR-KR. Black is clearly winning.} 42. d5 {[%emt 0:00:54]} Rc5 {[%emt 0:02:40]} 43. d6 {[%emt 0:00:13]} Rd5 $1 {[%emt 0:00:49]} (43... Rxe5+ 44. Rxe5+ Kxe5 45. d7 Kd5 46. d8=Q+ (46. d8=B $2 Kd4 $19) 46... Ke6 47. Qb8 b5 48. Qxa7) 44. Re7 {[%emt 0:01:34]} a5 {[%emt 0:00:00]} ({Don't take} 44... Rxe5+ 45. Rxe5+ Kxe5 46. d7 $18) 45. Ke3 {[%emt 0:00:00]} f6 {[%emt 0:00:00]} (45... Rxe5+ 46. Rxe5+ Kxe5 47. d7 Kf6 48. d8=Q+ (48. d8=B+ Ke5 $17) 48... Ke5 49. Qe7+ Kd5 50. Qxf7+ Kc5 51. Qc7+ Kd5 52. Qxb6) 46. exf6 {[%emt 0:00:00]} Kxf6 {[%emt 0:00:00] Quite a comeback for Black.   Weighted Error Value: White=0.90/Black=0.39} 0-1